Cogmind - Beta 12 @@@ ROGUE MODE // 2023.04.17 @ 17:18:52 Player: Exp. Geonium Core Result: Destroyed by Enhanced Grunt with Neutron Cannon Performance ------------- Evolutions (3) 1500 Regions Visited (9) 1800 Robots Destroyed (87) 435 Value Destroyed (2698) 2698 Prototype IDs (239) 4780 Alien Tech Used (0) 0 Bonus (2291) 2291 TOTAL SCORE: 13504 Bonus ------- High Alert Combat Kills 142 Follower Combat Kills 47 Met Data Miner 300 Used Data Conduit 3000 Friendly Fire -1198 Cogmind --------- Core Integrity 0/700 Matter 300/300 Energy 153/315 System Corruption 0% Temperature Cool (0) Movement Treading (570) Ox5 Location -7/Data Miner Parts ------- > --- POWER (1) -------- Neutrino Core > --- PROPULSION (6) --- Armored Treads > --- UTILITY (4) ------ Huge Storage Unit Hardened Light Armor Plating Hardlight Generator > --- WEAPON (2) ------- Great Axe > --- INVENTORY (25) --- Wheel Improved Cooling System Makeshift Sensor Array Experimental Sensor Array Improved Terrain Scanner Hacking Suite Hacking Suite Makeshift System Shield Authchip [R/Combat] Makeshift System Restoration Module High-powered Tractor Beam Improved Trap Extractor (6/6 Dirty Bomb) Enhanced Autogun Enhanced Autogun Heavy Battle Rifle XL Autogun Array Proton Missile Launcher Grenade Launcher Datajack Great Maul Peak State ------------ > --- POWER ------------ Neutrino Core > --- PROPULSION ------- Light Treads Light Treads Improved Treads Armored Treads Medium Treads Medium Treads > --- UTILITY ---------- Huge Storage Unit Advanced Terrain Scan Processor Advanced Targeting Computer Improved Medium Armor Plating > --- WEAPON ----------- Enhanced Autogun Ripper > --- INVENTORY -------- Neutrino Core Wheel Improved Heat Sink Makeshift Sensor Array Experimental Sensor Array Improved Terrain Scanner Improved Light Armor Plating Hardlight Generator Hacking Suite Hacking Suite System Shield Authchip [R/Combat] System Restoration Module High-powered Tractor Beam Improved Trap Extractor Enhanced Autogun Enhanced Autogun XL Autogun Array Grenade Launcher Rocket Launcher Datajack Plasma Cutter [Rating: 51] Favorites ----------- Power Micro Nuclear Core Engine Improved Deuterium Engine Power Core Micro Nuclear Core Propulsion Light Treads Treads Light Treads Leg Carbon-fiber Leg Wheel Wheel Utility Huge Storage Unit Device Improved Terrain Scanner Storage Huge Storage Unit Processor Advanced Targeting Computer Protection Hardened Light Armor Plating Weapon Autogun Ballistic Gun Autogun Ballistic Cannon Battle Cannon Launcher Grenade Launcher Special Weapon Plasma Cutter Slashing Weapon Ripper Special Melee Weapon Datajack Build | -11 -10 -10 -10 -9 -8 -7 -7 -7 -7 ------- Run | Jun Mat Min Exi Min Mat Fac Low Low Dat Slots Evolved 6 | . . . . . 4 2 . . . Power . | . . . . . . . . . . Propulsion 4 | . . . . . 2 2 . . . Utility 2 | . . . . . 2 . . . . Weapon . | . . . . . . . . . . Parts Attached 119 | . 8 1 9 11 13 20 28 27 2 Power 8 | . 1 . 1 . 1 1 2 1 1 Engine 5 | . 1 . . . 1 1 1 1 . Core 3 | . . . 1 . . . 1 . 1 Reactor . | . . . . . . . . . . Propulsion 38 | . 3 . 2 1 7 9 7 9 . Treads 31 | . 3 . 2 . 5 9 6 6 . Leg 2 | . . . . . . . . 2 . Wheel 5 | . . . . 1 2 . 1 1 . Hover . | . . . . . . . . . . Flight . | . . . . . . . . . . Utility 33 | . 2 1 . 4 3 2 10 10 1 Device 13 | . . . . 2 . 1 7 3 . Storage 2 | . 1 1 . . . . . . . Processor 5 | . 1 . . . 2 1 1 . . Hackware . | . . . . . . . . . . Protection 13 | . . . . 2 1 . 2 7 1 Artifact . | . . . . . . . . . . Weapon 40 | . 2 . 6 6 2 8 9 7 . Energy Gun . | . . . . . . . . . . Energy Cannon . | . . . . . . . . . . Ballistic Gun 21 | . 2 . 2 5 2 4 3 3 . Ballistic Cannon 1 | . . . . . . . 1 . . Launcher 6 | . . . . . . 4 2 . . Special Weapon 6 | . . . 4 . . . 1 1 . Impact Weapon . | . . . . . . . . . . Slashing Weapon 5 | . . . . . . . 2 3 . Piercing Weapon . | . . . . . . . . . . Special Melee Weapon 1 | . . . . 1 . . . . . Unidentified Prototypes 4 | . 1 . . 1 1 1 . . . Parts Lost 25 | . 1 . . . 1 5 1 8 9 Power 3 | . 1 . . . . . . 1 1 Propulsion 17 | . . . . . 1 4 1 6 5 Utility 2 | . . . . . . . . . 2 Weapon 3 | . . . . . . 1 . 1 1 Highest Loss Streak 9 | . 1 . . . 1 3 1 8 9 To Critical Strikes . | . . . . . . . . . . Average Slot Usage (%) 96 | . 91 100 100 99 99 93 94 97 91 Engine 5 | . 12 14 9 . 1 7 5 2 6 Core 4 | . . . 4 14 7 . 1 4 . Treads 31 | . 24 28 28 17 22 39 39 38 28 Leg 1 | . 3 . . . . . . 5 12 Wheel 2 | . . . . 10 12 . . . . Device 2 | . . . . . . 2 6 6 7 Storage 10 | . 14 14 14 14 9 7 7 7 7 Processor 13 | . 7 14 14 12 18 20 15 11 5 Protection 1 | . . . . 1 9 . . 3 7 Ballistic Gun 14 | . 28 28 18 26 18 9 5 4 . Special Weapon 2 | . . . 9 . . . 3 2 5 Slashing Weapon 2 | . . . . . . . 4 6 7 Naked Turns . | . . . . . . . . . . Heaviest Build 107 | 10 34 94 95 95 97 99 107 107 105 Greatest Support 139 | 20 40 40 40 40 80 120 139 139 80 Greatest Overweight (x) 10 | . . 2 2 9 9 1 9 10 1 Average Overweight (x) 1 | . . . 2 7 3 . 1 1 1 Largest Inventory Capacity 25 | . 15 25 25 25 25 25 25 25 25 Average Capacity 23 | . 14 17 25 25 25 25 25 25 25 Most Carried 25 | . 15 16 25 25 25 25 25 25 25 Average Carried 22 | . 11 15 21 24 24 24 24 24 24 Final Capacity 25 | 8 15 25 25 25 25 25 25 25 25 Final Carried 25 | 6 15 16 25 25 25 24 25 25 23 Class Distribution -------------------- 53% | Scavenger-Mutant 38% | Mutant 8% | Commander-Mutant Dominant Class ---------------- Mutant | -10/Materials Mutant | -10/Mines Mutant | -10/Exiles Commander-Mutant | -9/Mines Scavenger-Mutant | -8/Materials Scavenger-Mutant | -7/Factory Scavenger-Mutant | -7/Lower Caves Scavenger-Mutant | -7/Lower Caves Scavenger-Mutant | -7/Data Miner Resources | -11 -10 -10 -10 -9 -8 -7 -7 -7 -7 ----------- Run | Jun Mat Min Exi Min Mat Fac Low Low Dat Matter Collected 3183 | 200 199 145 100 159 480 1091 371 438 . Remotely 485 | . . . . . . 485 . . . Salvage Created 3666 | . 489 84 160 51 446 1225 615 516 80 Parts 223 | . 35 6 16 3 33 67 40 21 2 Haulers Intercepted 7 | . 2 . . . 3 2 . . . Recyclers Shooed 2 | . 2 . . . . . . . . Parts Field Recycled . | . . . . . . . . . . Retrieved Matter . | . . . . . . . . . . Parts Self-Destructed 12 | . . . . . . . 9 3 . Prevented 3 | . . . . . . . 1 2 . Kills | -11 -10 -10 -10 -9 -8 -7 -7 -7 -7 ------- Run | Jun Mat Min Exi Min Mat Fac Low Low Dat Combat Hostiles Destroyed 59 | . 11 2 . 2 7 27 4 5 1 Melee 1 | . . . . . . . . . 1 Guns 42 | . 11 2 . 2 7 14 1 5 . AOE 16 | . . . . . . 13 3 . . Classes Destroyed 19 | . 6 . . 1 3 5 4 . . Worker 4 | . 1 . . . 1 2 . . . Builder 4 | . 2 . . 1 . 1 . . . Tunneler 1 | . . . . . 1 . . . . Hauler 7 | . 2 . . . 3 2 . . . Recycler 1 | . . . . . . 1 . . . Minesweeper 2 | . . . . . . . 2 . . Operator 3 | . 1 . . . 1 1 . . . Watcher 1 | . . . . . . 1 . . . Swarmer 13 | . 5 . . 1 3 . 4 . . Grunt 25 | . 6 2 1 . 1 15 . . . Duelist 1 | . . . . . . 1 . . . Protector 1 | . . . . . . 1 . . . Sentry 6 | . . . . . 2 4 . . . Hunter 5 | . . . . . 1 4 . . . Programmer 2 | . . . . . . 2 . . . Enhanced Grunt 1 | . . . . . . . . . 1 Decomposer 1 | . . . . . . . 1 . . Packrat 1 | . . . . . . . 1 . . Samaritan 6 | . . . . . . . 4 2 . Assembled 1 | . . . . 1 . . . . . Thug 1 | . . . . . . . . 1 . Savage 3 | . . . . . . . 1 2 . Butcher 4 | . . . . . . . 1 3 . Mutant 2 | . . . . . . . 1 1 . Best Kill Streak 6 | . 5 2 . 2 6 6 4 5 1 Combat Bots Only 6 | . 3 2 . 1 4 6 4 5 1 Max Kills in Single Turn 3 | . 1 1 1 1 1 3 3 1 1 Gunslinging . | . . . . . . . . . . Exploded 3 | . . . . . . 3 3 . . Melee 1 | . . . . . . . . . 1 Uniques/NPCs Destroyed . | . . . . . . . . . . Combat | -11 -10 -10 -10 -9 -8 -7 -7 -7 -7 -------- Run | Jun Mat Min Exi Min Mat Fac Low Low Dat Damage Taken 5758 | . 510 78 . 16 504 1872 241 1077 1460 Core 924 | . 101 . . . 96 199 . 53 475 Absorbed by Shields 128 | . . . . . . . . . 128 Core Remaining (%) 80 | 100 . . . 59 82 . . . . Volleys Fired 341 | . 74 5 12 6 45 100 66 33 . Largest 2 | . 2 2 2 2 2 2 2 2 . Hottest 63 | . 46 46 40 51 50 63 45 50 . Shots Fired 589 | . 148 10 24 11 90 183 72 51 . Gun 478 | . 148 10 . 11 90 153 19 47 . Cannon . | . . . . . . . . . . Launcher 32 | . . . . . . 30 2 . . Special 79 | . . . 24 . . . 51 4 . Kinetic 478 | . 148 10 . 11 90 153 19 47 . Thermal 79 | . . . 24 . . . 51 4 . Explosive 32 | . . . . . . 30 2 . . Electromagnetic . | . . . . . . . . . . Robot Hit Streak 38 | . 9 8 30 31 7 27 18 38 . Robot Miss Streak 4 | . 4 2 . 3 3 2 2 1 . Penetration Max . | . . . . . . . . . . Secondary Targets 2 | . 1 1 . . . . . . . Max Gunslinging Chain 1 | . 1 1 . . . . . . . Shots Hit Robots 454 | . 87 8 22 5 57 136 62 54 23 Core Hits 207 | . 33 4 5 3 22 79 29 23 9 Critical Kills 4 | . . . . . 2 2 . . . Critical Parts Destroyed 8 | . 1 . . . 3 3 . 1 . Critical Strikes 20 | . 1 . 1 . 5 6 3 1 3 Destroy 13 | . 1 . . . 5 6 . 1 . Sever 7 | . . . 1 . . . 3 . 3 Melee Attacks 66 | . . . . 1 . . 10 19 36 Impact . | . . . . . . . . . . Slashing 65 | . . . . . . . 10 19 36 Piercing . | . . . . . . . . . . Sneak Attacks 13 | . . . . 1 . . 5 6 1 Combat Hostiles . | . . . . . . . . . . Follow-up Attacks . | . . . . . . . . . . Damage Inflicted 10353 | . 1004 119 288 82 1016 4364 1338 1189 953 Guns 5279 | . 952 119 . 82 1016 2080 245 785 . Cannons . | . . . . . . . . . . Explosions 2421 | . . . . . . 2196 225 . . Melee 1713 | . . . . . . . 398 362 953 Ramming 140 | . 52 . . . . 88 . . . Kinetic 5279 | . 952 119 . 82 1016 2080 245 785 . Thermal 1100 | . . . 288 . . 300 470 42 . Explosive 2121 | . . . . . . 1896 225 . . Electromagnetic . | . . . . . . . . . . Impact . | . . . . . . . . . . Slashing 1713 | . . . . . . . 398 362 953 Piercing . | . . . . . . . . . . Highest Corruption 1 | . . . . . . 1 1 . . Average Corruption 1 | . . . . . . 1 1 . . Corruption Purged 1 | . . . . . . . 1 . . Corruption Blocked . | . . . . . . . . . . Effects 7 | . . . . . . 7 . . . Matter Fused 2 | . . . . . . 2 . . . Heat Flow Errors 1 | . . . . . . 1 . . . Data Loss (minor) 4 | . . . . . . 4 . . . Overload Shots . | . . . . . . . . . . Overflow Damage 342 | . . . 7 . . 66 229 . 40 Projectiles 16 | . . . 7 . . . 9 . . Explosions 62 | . . . . . . 44 18 . . Melee 264 | . . . . . . 22 202 . 40 Knockbacks 1 | . . . . . . 1 . . . Impact 1 | . . . . . . 1 . . . Kinetic . | . . . . . . . . . . Secondary . | . . . . . . . . . . Self-Inflicted Damage 1 | . . . . . . 1 . . . Shots 1 | . . . . . . 1 . . . Rammed 17 | . 12 . . . 1 4 . . . Targets Rammed 19 | . 12 . . . 1 6 . . . Kicked . | . . . . . . . . . . Crushed 2 | . . . . . . 2 . . . Highest Temperature 230 | . 31 13 . 14 75 230 . 15 . Average Temperature 20 | . 8 9 . 10 12 42 . 3 . Received Heat Transfer 1086 | . 156 42 . . 144 585 . 159 . Siege Activations . | . . . . . . . . . . Robots Corrupted . | . . . . . . . . . . Combat Hostiles . | . . . . . . . . . . Parts Fried . | . . . . . . . . . . Impact Corruptions 1 | . . . . . . 1 . . . Robots Melted 1 | . . . . . . . 1 . . Combat Hostiles . | . . . . . . . . . . Parts Melted 11 | . . . . . . . 11 . . Heat Transferred 2740 | . . . 851 . . 150 1591 148 . Parts Sabotaged . | . . . . . . . . . . Parts Stolen . | . . . . . . . . . . Parts Stripped . | . . . . . . . . . . Power Chain Reactions . | . . . . . . . . . . Missiles Intercepted . | . . . . . . . . . . Alert | -11 -10 -10 -10 -9 -8 -7 -7 -7 -7 ------- Run | Jun Mat Min Exi Min Mat Fac Low Low Dat Peak Influence 748 | . 176 79 . 77 277 748 . . . Initial 29 | . . 29 . . . . . . . Average 120 | . 81 34 . 15 114 388 . . . Maximum Alert Level 3 | . . . . . 1 3 . . . Low Security (%) 84 | . 100 100 . 100 91 28 . . . Level 1 7 | . . . . . 8 30 . . . Level 2 2 | . . . . . . 12 . . . Level 3 5 | . . . . . . 29 . . . Level 4 . | . . . . . . . . . . Level 5 . | . . . . . . . . . . High Security . | . . . . . . . . . . Max Security . | . . . . . . . . . . Squads Dispatched 12 | . 2 . . . 2 8 . . . Investigation 2 | . . . . . 1 1 . . . Extermination 1 | . . . . . . 1 . . . Reinforcement 7 | . 2 . . . 1 4 . . . Assault 1 | . . . . . . 1 . . . Garrison 1 | . . . . . . 1 . . . Intercept . | . . . . . . . . . . Searches Triggered . | . . . . . . . . . . Construction Impeded 1 | . . . . . . 1 . . . Haulers Reinforced 2 | . . . . . . 2 . . . Active Scanning Responses . | . . . . . . . . . . Cargo Convoy Interrupts . | . . . . . . . . . . Stealth | -11 -10 -10 -10 -9 -8 -7 -7 -7 -7 --------- Run | Jun Mat Min Exi Min Mat Fac Low Low Dat Distress Signals 7 | . 1 . . . 3 3 . . . Communications Jammed . | . . . . . . . . . . Distress Signals . | . . . . . . . . . . Times Spotted 99 | . 25 2 . 4 17 38 4 6 3 Peak Tracking Total 7 | . 4 2 . 3 4 7 4 6 3 Tactical Retreats 2 | . 1 . . . . 1 . . . Traps | -11 -10 -10 -10 -9 -8 -7 -7 -7 -7 ------- Run | Jun Mat Min Exi Min Mat Fac Low Low Dat Traps Triggered 1 | . 1 . . . . . . . . Indirectly . | . . . . . . . . . . Trap Hack Attempts 8 | . . . . 8 . . . . . Triggered . | . . . . . . . . . . Disarmed 7 | . 7 . . . . . . . . Reprogrammed 1 | . . . . 1 . . . . . Reused . | . . . . . . . . . . Traps Extracted 1 | . . . . 1 . . . . . Installed . | . . . . . . . . . . Triggered 1 | . . . . . . . 1 . . Most Traps Carried 6 | . . . . 1 1 1 6 6 6 Machines | -11 -10 -10 -10 -9 -8 -7 -7 -7 -7 ---------- Run | Jun Mat Min Exi Min Mat Fac Low Low Dat Machines Disabled 5 | . . . . . . 5 . . . Max in Single Turn 3 | . . . . . . 3 . . . Garrison Access 1 | . . . . . . 1 . . . Machines Repaired . | . . . . . . . . . . Machines Sabotaged . | . . . . . . . . . . Overloaded Fab Kills . | . . . . . . . . . . Hacking | -11 -10 -10 -10 -9 -8 -7 -7 -7 -7 --------- Run | Jun Mat Min Exi Min Mat Fac Low Low Dat Machines Accessed 20 | . 3 . 2 1 4 3 1 2 4 Terminals 7 | . 3 . . . 3 1 . . . Fabricators 1 | . . . . . . 1 . . . Repair Stations . | . . . . . . . . . . Recycling Units 2 | . . . . . 1 1 . . . Scanalyzers . | . . . . . . . . . . Garrison Access . | . . . . . . . . . . Total Hacks 68 | . 11 . 2 1 12 4 1 10 27 Successful 53 | . 5 . 2 1 5 2 1 10 27 Failed 15 | . 6 . . . 7 2 . . . Catastrophic 4 | . . . . . 2 2 . . . Database Lockouts . | . . . . . . . . . . Manual 27 | . 11 . 1 . 12 3 . . . Terminals 23 | . 11 . . . 11 1 . . . Fabricators 1 | . . . . . . 1 . . . Repair Stations . | . . . . . . . . . . Recycling Units 3 | . . . . . 1 2 . . . Scanalyzers . | . . . . . . . . . . Garrison Access . | . . . . . . . . . . Terminal Hacks 47 | . 3 . 2 1 2 1 1 10 27 Record 21 | . . . 1 . . . . 9 11 Part Schematic 11 | . . . . . . . . . 11 Robot Schematic 2 | . . . . . . . . . 2 Prototype ID Bank 3 | . . . . . . . . . 3 Open Door 3 | . . . . 1 . . 1 1 . Branch Access Points 3 | . 1 . . . 1 1 . . . Terminal Index 1 | . . . . . 1 . . . . Disarm Traps 2 | . 2 . . . . . . . . EX-Prototype ID Bank 1 | . . . 1 . . . . . . Fabricator Hacks . | . . . . . . . . . . Repair Station Hacks . | . . . . . . . . . . Recycling Unit Hacks . | . . . . . . . . . . Scanalyzer . | . . . . . . . . . . Garrison Access Hacks . | . . . . . . . . . . Unauthorized Hacks 6 | . 2 . . . 3 1 . . . Terminals 4 | . 2 . . . 2 . . . . Botnet 3 | . 1 . . . 2 . . . . Operators 1 | . 1 . . . . . . . . Fabricators . | . . . . . . . . . . Repair Stations . | . . . . . . . . . . Recycling Units 2 | . . . . . 1 1 . . . Tunnel 2 | . . . . . 1 1 . . . Scanalyzers . | . . . . . . . . . . Garrison Access . | . . . . . . . . . . Data Cores Recovered 1 | . . . . . 1 . . . . Used . | . . . . . . . . . . Hacking Detections 8 | . 2 . . . 3 3 . . . Full Trace Events . | . . . . . . . . . . Feedback Events . | . . . . . . . . . . Feedback Blocked . | . . . . . . . . . . Robot Schematics Acquired 2 | . . . . . . . . . 2 Robots Built . | . . . . . . . . . . Authchips . | . . . . . . . . . . Time . | . . . . . . . . . . Total Robot Build Rating . | . . . . . . . . . . Part Schematics Acquired 11 | . . . . . . . . . 11 Parts Built . | . . . . . . . . . . Authchips . | . . . . . . . . . . Time . | . . . . . . . . . . Total Part Build Rating . | . . . . . . . . . . Parts Repaired . | . . . . . . . . . . Time . | . . . . . . . . . . Parts Recycled . | . . . . . . . . . . Recycled Matter . | . . . . . . . . . . Retrieved Matter . | . . . . . . . . . . Retrieved Components . | . . . . . . . . . . Parts Scanalyzed . | . . . . . . . . . . Part Schematics Acquired . | . . . . . . . . . . Parts Damaged . | . . . . . . . . . . Bothacking | -11 -10 -10 -10 -9 -8 -7 -7 -7 -7 ------------ Run | Jun Mat Min Exi Min Mat Fac Low Low Dat Used RIF Installer . | . . . . . . . . . . Robots Hacked 1 | . . . . 1 . . . . . Non-combat 1 | . . . . 1 . . . . . Combat . | . . . . . . . . . . Robot Hacks Applied 1 | . . . . 1 . . . . . parse_system 1 | . . . . 1 . . . . . Relay Couplers Released 3 | . . . . . . 3 . . . Programmers 3 | . . . . . . 3 . . . Fabnet Peak Effective % . | . . . . . . . . . . Robots Rewired 4 | . . . 4 . . . . . . Allies Hacked . | . . . . . . . . . . Hacks Repelled . | . . . . . . . . . . Allies | -11 -10 -10 -10 -9 -8 -7 -7 -7 -7 -------- Run | Jun Mat Min Exi Min Mat Fac Low Low Dat Total Allies 7 | . . . 4 3 . . . . . Largest Group 5 | . . . 3 5 5 . . . . Highest-Rated Group 69 | . . . 37 69 69 . . . . Highest-Rated Ally 21 | . . . 21 21 21 . . . . Total Orders 2 | . . . . 2 . . . . . STAY 1 | . . . . 1 . . . . . FOLLOW 1 | . . . . 1 . . . . . Ally Attacks 53 | . . . . 11 42 . . . . Total Damage 753 | . . . . 104 649 . . . . Kills 5 | . . . . 2 3 . . . . Allies Corrupted . | . . . . . . . . . . Allies Melted . | . . . . . . . . . . Intel | -11 -10 -10 -10 -9 -8 -7 -7 -7 -7 ------- Run | Jun Mat Min Exi Min Mat Fac Low Low Dat Robot Analysis Total 131 | . . . . . . . . . 131 Derelict Logs Recovered 4 | . . 1 . 1 . . . 2 . Drone Launches . | . . . . . . . . . . Drone Recoveries . | . . . . . . . . . . Exploration | -11 -10 -10 -10 -9 -8 -7 -7 -7 -7 ------------- Run | Jun Mat Min Exi Min Mat Fac Low Low Dat Turns Passed 12502 | . 1085 630 1738 1887 804 1128 2170 2723 337 Spaces Moved 4473 | 1 548 333 489 582 404 474 738 806 98 Core . | . . . . . . . . . . Treads 3459 | . 466 333 489 134 84 474 638 743 98 Legs 83 | 1 82 . . . . . . . . Wheels 931 | . . . . 448 320 . 100 63 . Hover . | . . . . . . . . . . Flight . | . . . . . . . . . . Fastest Speed 120 | 120 120 160 320 200 140 160 161 161 242 Average Speed 201 | 120 154 185 320 238 162 181 171 196 242 Slowest Speed 320 | 120 160 320 320 320 240 240 240 242 243 Overloaded Moves . | . . . . . . . . . . Propulsion Burnouts . | . . . . . . . . . . Robots Hopped . | . . . . . . . . . . Cave-ins Triggered . | . . . . . . . . . . Exploration Rate (%) 63 | 2 89 66 89 97 38 20 70 81 78 Regions Visited 9 Branch Regions 6 Pre-discovered Areas 27 | . . . 1 1 1 1 . . 23 Known Exits Taken 2 | . 1 . . . . 1 . . . Unknown Exits Taken 7 | 1 . 1 1 1 1 . 1 1 . Scrap Searched 10 | . . . . 2 . . 4 4 . Spaces Dug 47 | . . . . . . 10 24 13 . Terrain Destroyed 165 | . . . . . . 128 24 13 . Melee 17 | . . . . . . . 4 13 . Projectile . | . . . . . . . . . . AOE 148 | . . . . . . 128 20 . . Terrain Rammed . | . . . . . . . . . . Walls Destroyed . | . . . . . . . . . . Machines Disabled . | . . . . . . . . . . Actions | -11 -10 -10 -10 -9 -8 -7 -7 -7 -7 --------- Run | Jun Mat Min Exi Min Mat Fac Low Low Dat Total 7324 | . 667 339 614 1070 495 617 1511 1874 137 Wait 2080 | . 2 . . 447 6 5 647 972 1 Move 4464 | . 547 332 488 581 403 473 737 805 98 Hop . | . . . . . . . . . . Pick Up 61 | . 15 1 6 7 12 5 7 8 . Fast Attach 33 | . 4 . 2 1 3 1 11 11 . Attach 20 | . . . . 2 5 5 3 3 2 Detach 2 | . . . 1 . . . 1 . . Swap 66 | . 4 1 7 8 5 14 14 13 . Drop 69 | . 9 . 4 9 15 8 14 10 . Fire 341 | . 74 5 12 6 45 100 66 33 . Melee 66 | . . . . 1 . . 10 19 36 Ram . | . . . . . . . . . . Kick . | . . . . . . . . . . Crush 19 | . 12 . . . 1 6 . . . Escape Stasis . | . . . . . . . . . . Rewire 95 | . . . 94 . . . 1 . . Trap 8 | . . . . 8 . . . . . Miscellaneous . | . . . . . . . . . . Route ------- -11/Junkyard -10/Materials (discovered 5 exits: [*Mat x3] / *Min x2) -10/Mines (discovered 2 exits: [*Mat] / *Exi) -10/Exiles -9/Mines (discovered 2 exits: *Mat x2) -8/Materials -7/Factory (discovered 2 exits: *Low x2) -7/Lower Caves -7/Lower Caves (discovered 2 exits: [*Fac] / *Dat) -7/Data Miner (discovered 1 exit: [*Pro]) History --------- Turn | Location | Event 1 | -11/Junkyard | Discovered new exit (range 0) 1 | -11/Junkyard | Entered Materials 113 | -10/Materials | Discovered new exit (range 15) 299 | -10/Materials | Discovered new exit (range 9) 300 | -10/Materials | Build established: Mutant 671 | -10/Materials | Discovered new exit (range 16) 829 | -10/Materials | Discovered new exit (range 16) 926 | -10/Materials | Discovered new exit (range 8) 1044 | -10/Materials | Identified exit to Mines 1086 | -10/Materials | Entered Mines 1224 | -10/Mines | Learned Materials stockpile data 1506 | -10/Mines | Discovered new exit (range 14) 1544 | -10/Mines | Found a damaged Exp. Sensor Array with a note attached 1549 | -10/Mines | Found Prototype Device 1700 | -10/Mines | Deemed a non-threat by the Exiles lab entrance 1704 | -10/Mines | Discovered new exit (range 5) 1716 | -10/Mines | Entered Exiles 1716 | -10/Exiles | Found Exiles lab destroyed 2175 | -10/Exiles | Learned location of Zion (-6) 2348 | -10/Exiles | Opened EX-Vault 2370 | -10/Exiles | Found XL Autogun Array 3428 | -10/Exiles | Discovered new exit (range 10) 3454 | -10/Exiles | Entered Mines 3454 | -9/Mines | Accompanied by 3 allies 3455 | -9/Mines | Met a Derelict bent on vengeance 3474 | -9/Mines | Assembled infested the area 3479 | -9/Mines | Assisted by a Guerilla fighting off Assembled 4357 | -9/Mines | Assisted by bots powering up and referring to "LRC-V3" 4395 | -9/Mines | Learned location of Storage (-9) 4396 | -9/Mines | Discovered new exit (range 5) 4628 | -9/Mines | Learned 2 Materials zone layouts 4631 | -9/Mines | Met a Derelict who couldn't figure out how to use a Trap Extractor 4645 | -9/Mines | Build established: Commander-Mutant 5184 | -9/Mines | Identified Exp. Sensor Array 5322 | -9/Mines | Discovered new exit (range 9) 5341 | -9/Mines | Entered Materials 5341 | -8/Materials | Accompanied by 5 allies 5341 | -8/Materials | Evolved 4 slots: Propulsion x2, Utility x2 5620 | -8/Materials | Discovered new exit (range 7) 5641 | -8/Materials | Build established: Scavenger-Mutant 6145 | -8/Materials | Entered Factory 6145 | -7/Factory | Evolved 2 slots: Propulsion x2 6772 | -7/Factory | Garrison activated, responded to threat 6787 | -7/Factory | Identified exit to Lower Caves 6990 | -7/Factory | Lost 3 parts (3n) 7268 | -7/Factory | Build established: Mutant 7273 | -7/Factory | Entered Lower Caves 7484 | -7/Lower Caves | Encountered a Warlord checkpoint 7920 | -7/Lower Caves | Build established: Scavenger-Mutant 8847 | -7/Lower Caves | Discovered new exit (range 15) 9443 | -7/Lower Caves | Entered another Lower Caves area 9772 | -7/Lower Caves | Discovered new exit (range 6) 11018 | -7/Lower Caves | Learned 12 Factory zone layouts 11081 | -7/Lower Caves | Attacked by a faux Warlord 11175 | -7/Lower Caves | Lost 8 parts (1p6n1w) 11431 | -7/Lower Caves | Learned Research security intel 11431 | -7/Lower Caves | Learned Research emergency access door positions 11431 | -7/Lower Caves | Learned Armory trap positions 11431 | -7/Lower Caves | Learned 8 Factory zone layouts 11771 | -7/Lower Caves | Encountered a Warlord checkpoint 12118 | -7/Lower Caves | Discovered new exit (range 12) 12166 | -7/Lower Caves | Entered Data Miner 12166 | -7/Data Miner | Discovered new exit (range 6) 12212 | -7/Data Miner | Met Data Miner 12302 | -7/Data Miner | Acquired the access code to Warlord's prototype stash 12302 | -7/Data Miner | Learned location of Section 7 (-2) 12321 | -7/Data Miner | Received God Mode back door access code from Data Miner 12380 | -7/Data Miner | Interfaced with the Data Conduit 12431 | -7/Data Miner | Core integrity fell below 50% 12495 | -7/Data Miner | Core integrity fell below 20% 12503 | -7/Data Miner | Destroyed by Enhanced Grunt with Neutron Cannon Last Messages --------------- Downloaded 719 prototype IDs. Downloaded central machine database. Downloaded 22 destinations. Downloaded encryption format records. Connection remotely terminated. 12408_ Enhanced Grunt Adv. Heat Sink severed. 12410_ Plasma Cutter destroyed. 12424_ Destroyed Exp. Thermal Shield. 12439_ Carbon-fiber Leg destroyed. 12446_ Adv. Targeting Computer destroyed. 12448_ Lgt. Treads destroyed. 12452_ Enhanced Grunt Neutron Cannon severed. 12464_ Imp. Deuterium Engine destroyed. 12469_ Enhanced Grunt destroyed. 12485_ Lgt. Treads destroyed. 12492_ Hrd. Light Armor Plating destroyed. 12495_ Enhanced Grunt Lyr. Medium Armor Plating severed. 12500_ Destroyed Adv. Heat Sink. 12501_ Enhanced Grunt heat damages Neutron Cannon. 12502_ Enhanced Grunt heat damages Neutron Cannon, Enh. Flexi-carbon Leg. Map ----- +----------------------------------------------------+ | | | | | | | | | | | | | | | | | | | | | | | | | | | | | | | | | | | | | ??????????????????????????????? | | ??????????????????????????????? | | ??????????????????????????????? | | ??????????????????????????????? | | ??????????????????????????????? | | ????#################?????????? | | ???##" g""""""""""""######????? | | ??## @! """" """"""""###### | | ??#""] " """ | | ??#"!%" "" | | ??#" """ | | ??#"""""" g | | ??#""""""" | | ??#""""""" """"""" | | ??#"""""""" """"##### | | ??##""""""" """""###???? | | ?????"""""""" "#####?????? | | ??????######"## "#?????????? | | ???????????#"### "#?????????? | | ???????????#"### "#?????????? | | ???????????#"?# "#?????????? | | ?????????????## "#?????????? | | ?????????????# "#?????????? | | ?????????????### "#?????????? | | ???????????????# "##????????? | | ??????????????## ""#????????? | | ???????????#?## ""#????????? | | ??????????##"#"X ""#????????? | | ??????????""""" "####?????? | | ??????????""""" X"""""?????? | | ??????????##"#"X "##"#?????? | | ???????????#"## X""""#?????? | +----------------------------------------------------+ Best States ------------- Heat Dissipation 34 Energy Generation 19 Energy Capacity 315 Matter Stores 300 Matter Capacity 300 Sight Range 16 Terrain Scan Range 16 Terrain Scan Density 210 Armor Coverage 375 Evasion (%) 55 Targeting Accuracy 8 Target Analysis 5 Recoil Reduction 6 Authchip Count 1 Trap Extractor Capacity 6 Item Schematics ----------------- Imp. Force Field | -7/Data Miner | Free Antimatter Reactor | -7/Data Miner | Free Cmb. Airjet | -7/Data Miner | Free Disruptor Cannon | -7/Data Miner | Free Adv. Cooling System | -7/Data Miner | Free Nuclear Pulse Array | -7/Data Miner | Free Imp. Heavy Machine Gun | -7/Data Miner | Free Thermal Defense Suite | -7/Data Miner | Free Cld. Aerolev Unit | -7/Data Miner | Free Lgt. Regenerative Plating | -7/Data Miner | Free Combat Drone Bay | -7/Data Miner | Free Robot Schematics ------------------ G-47 Trooper | -7/Data Miner | Free A-15 Conveyor | -7/Data Miner | Free Fabricated ------------ Nothing Alien Tech Used ----------------- None Achievements -------------- None Challenges ------------ None Game ------ Seed EncryptedOpticalBuckler Manual? 0 Play Time 00:57:12 Cumulative 404.2 hours Start 2023.04.17 @ 16:22:46 End 2023.04.17 @ 17:18:52 Sessions 1 Manual Loads 0 Difficulty Rogue Special Mode None Game No. 442 Rogue 442 Adventurer 0 Explorer 0 Win Type - Total 12 Types 8/0/3/1/0/0/0/0/0 Lore% 82 Gallery% 89 Achievement% 79 Wizard Run 0 Options --------- ASCII 0 Keyboard 0 Movement Numpad Keybinds 0 Fullscreen 1 Font 18/Terminus Map View 76x50 Tactical HUD 1 Map Filters NONE Filters NONE Steam 1 RUN: 9ac6884a-3e25-4828-a871-4483706bfd03